bitfinex/quotes_ETHUSD_20241203
["timestamp","ask_amount","ask_price","bid_price","bid_amount"]
[1733268310650,0.25712274,3629.4,3628.6,0.3]
[1733268310849,3.91551197,3629.7,3628.6,0.3]
[1733268311139,0.64867445,3629.6,3628.6,0.3]
[1733268311309,0.25712325,3629.5,3628.6,0.3]
[1733268311517,3.01240702,3629.4,3628.6,0.3]
[1733268311728,2.75534,3629.4,3628.6,0.3]
[1733268311925,0.3915512,3629.6,3628.6,0.3]
[1733268312132,3.01226725,3629.5,3628.6,0.3]
[1733268312346,2.7552,3629.5,3628.6,0.3]
[1733268312521,1.0439,3630.0,3629.1,0.2]
[1733268312702,3.01196954,3629.9,3629.2,0.1]
[1733268312904,0.66259649,3629.8,3629.2,0.1]
[1733268313104,0.25698731,3630.1,3629.2,0.1]
[1733268313311,0.25698731,3630.0,3629.3,1.235]
[1733268313551,0.41121526,3630.3,3629.5,0.2]
[1733268313552,0.46257271,3630.3,3629.5,0.2]
[1733268313703,0.32170827,3630.2,3629.6,1.035]
[1733268314158,0.32170827,3630.2,3630.1,0.010744]
[1733268314812,0.25694063,3630.4,3630.1,0.010744]
[1733268315011,2.75446,3630.5,3630.1,0.010744]
[1733268315012,0.25694379,3630.3,3630.1,0.010744]
[1733268315231,1.0439,3630.7,3630.1,0.010744]
[1733268315432,2.75451,3630.5,3630.1,0.010744]
[1733268316452,3.01147007,3630.4,3630.1,0.010744]
[1733268316619,0.30114701,3630.3,3630.1,0.010744]
[1733268317017,1.0439,3630.7,3630.1,0.010744]
[1733268317317,0.25691372,3630.6,3630.2,1.0651]
[1733268317518,0.25693552,3630.8,3630.3,0.9651]
[1733268317742,0.07970623,3630.9,3630.3,0.9651]
[1733268318343,0.36308385,3630.9,3630.3,0.9651]
[1733268318820,0.07970623,3630.9,3630.3,0.9651]
[1733268319024,0.07970623,3630.9,3630.8,0.1]
[1733268319215,0.07970623,3630.9,3630.8,1.0576]
[1733268320866,0.07970623,3630.9,3630.8,3.81181]
[1733268321244,0.07970623,3630.9,3630.8,1.0576]
[1733268321446,0.07970623,3630.9,3630.8,1.458794]
[1733268321632,0.07970623,3630.9,3630.8,4.213004]
[1733268323666,0.07970623,3630.9,3630.8,4.24054285]
[1733268323876,0.07970623,3630.9,3630.8,4.213004]
[1733268326633,0.07970623,3630.9,3630.8,1.0576]
[1733268326981,0.07970623,3630.9,3630.8,1.2576]
[1733268327340,0.07970623,3630.9,3630.8,1.0576]
[1733268327556,0.07970623,3630.9,3630.8,1.2576]
[1733268328733,0.07970623,3630.9,3630.8,4.01181]
[1733268329083,0.07970623,3630.9,3630.8,4.67939556]
[1733268329434,0.07970623,3630.9,3630.8,1.92518556]
[1733268329636,0.07970623,3630.9,3630.8,1.2576]
[1733268331042,0.07970623,3630.9,3630.8,6.6758556]
[1733268332476,6.23e-06,3630.9,3630.8,9.7758556]
[1733268333095,6.23e-06,3630.9,3630.8,9.6758556]
[1733268334609,0.9606,3632.9,3632.4,0.2]
[1733268334761,1.3729423,3632.9,3632.6,0.2]
[1733268335103,0.51211962,3633.2,3632.6,0.2]
[1733268335258,3.71883,3633.3,3632.6,0.2]
[1733268336099,0.9665,3633.3,3632.6,0.2]
[1733268336942,3.71882,3633.3,3632.6,0.2]
[1733268337145,0.371882,3633.2,3632.6,0.2]
[1733268337551,3.124292,3633.2,3632.6,0.2]
[1733268338253,0.371882,3633.2,3632.6,0.2]
[1733268338953,0.9665,3633.3,3632.6,0.2]
[1733268339188,0.9665,3633.3,3632.5,0.1]
[1733268340199,0.9665,3633.3,3632.6,0.2]
[1733268341699,0.968,3633.6,3632.7,1.0424]
[1733268341916,3.97613742,3633.6,3632.7,1.0424]
[1733268342070,0.69458136,3633.5,3632.7,1.0424]
[1733268342254,0.25601742,3633.5,3633.0,0.2]
[1733268342460,0.25601742,3633.7,3633.0,0.2]
[1733268343254,0.25610689,3633.7,3633.0,0.2]
[1733268343457,0.25610689,3633.8,3633.0,0.2]
[1733268343791,2.75239,3633.2,3632.7,0.3]
[1733268344173,4.1462468,3633.6,3632.8,0.2]
[1733268344368,0.32128452,3633.9,3632.6,0.2]
[1733268344369,2.75263,3632.9,3632.6,0.2]
[1733268344577,2.75263,3632.9,3632.4,0.3]
[1733268344766,0.275263,3632.8,3632.4,0.1]
[1733268345191,2.75292,3632.5,3632.1,0.3]
[1733268345369,0.9842,3632.6,3632.1,0.3]
[1733268345370,2.75301,3632.4,3632.1,0.1]
[1733268345573,0.9842,3632.6,3631.9,0.3]
[1733268346207,3.126651,3632.5,3631.9,0.3]
[1733268346416,2.75322,3632.2,3631.9,0.3]
[1733268347116,2.75302,3632.4,3631.9,0.3]
[1733268347319,0.25654829,3632.3,3631.9,0.3]
[1733268347619,0.9842,3632.6,3632.3,0.2]
[1733268347620,2.75293,3632.5,3632.3,0.2]
[1733268347812,0.25663342,3632.4,3632.3,0.2]
[1733268348515,0.25663342,3632.4,3632.3,1.1936]
[1733268349071,3.16319435,3632.8,3632.3,1.1936]
[1733268349226,2.75293,3632.5,3632.1,0.2]
[1733268349437,0.25671831,3632.4,3632.1,0.2]
[1733268349599,2.75293,3632.5,3632.1,0.2]
[1733268350020,0.25676964,3632.4,3632.1,0.2]
[1733268350327,0.2568361,3632.3,3632.1,0.2]
[1733268350481,0.41094165,3632.6,3632.1,0.2]
[1733268350682,0.25683895,3632.5,3632.1,0.2]
[1733268351031,0.25683895,3632.4,3632.1,0.2]
[1733268351195,0.87322393,3632.7,3632.1,0.2]
[1733268351396,0.41096299,3632.7,3632.6,1.2284]
[1733268351729,0.87327531,3633.1,3632.6,1.2284]
[1733268351939,0.25681251,3633.0,3632.6,1.2284]
[1733268352086,0.25681251,3632.9,3632.8,0.2]
[1733268352586,0.41090199,3633.6,3632.8,0.2]
[1733268352814,1.62863836,3633.5,3632.8,0.2]
[1733268353019,0.25681047,3633.4,3632.8,0.2]
[1733268353325,0.25679467,3633.3,3632.8,0.2]
[1733268353520,0.25679467,3633.2,3632.8,0.2]
[1733268353730,0.46225123,3633.4,3632.9,0.1]
[1733268353933,0.25680004,3633.3,3632.9,0.1]
[1733268354127,0.41089013,3633.6,3632.9,0.1]
[1733268354128,0.46224001,3633.4,3632.9,0.1]
[1733268354328,0.25679816,3633.3,3632.9,0.1]
[1733268354584,0.46223696,3633.5,3632.9,0.1]
[1733268354730,0.2567936,3633.4,3632.9,0.1]
[1733268355051,0.2567936,3633.3,3632.9,0.1]
[1733268355211,0.25681247,3633.2,3632.9,0.1]
[1733268355551,0.46223077,3633.4,3632.9,0.1]
[1733268355847,0.25681234,3633.3,3633.2,1.3138]
[1733268356049,0.41089013,3633.7,3633.6,0.2]
[1733268356251,0.71902569,3633.7,3633.6,0.2]
[1733268356608,0.4622308,3633.7,3633.6,0.2]
[1733268357272,0.71901216,3633.7,3633.6,0.2]
[1733268357571,1.12990005,3633.7,3633.6,0.2]
[1733268357718,0.71904488,3633.7,3633.6,0.2]
[1733268358319,1.12990005,3633.7,3633.6,0.2]
[1733268358563,0.71904488,3633.7,3633.6,0.2]
[1733268358763,0.25679489,3633.7,3633.6,1.75331356]
[1733268360196,2.75135,3634.6,3633.6,1.75331356]
[1733268360197,2.75118,3634.8,3634.1,0.1]
[1733268360437,0.41103621,3634.3,3634.1,0.1]
[1733268360608,0.87367824,3634.2,3634.1,0.1]
[1733268360751,0.87367824,3634.2,3634.1,0.3]
[1733268360752,0.25702335,3634.2,3634.1,0.3]
[1733268360947,0.71965051,3634.2,3634.1,0.3]
[1733268361268,1.13087915,3634.2,3634.1,0.3]
[1733268361788,1.13087915,3634.2,3634.1,1.3154]
[1733268361952,0.71965051,3634.2,3634.1,1.3154]
[1733268362148,0.71965051,3634.2,3634.1,1.722113]
[1733268362349,0.7195778,3634.2,3634.1,1.722113]
[1733268362552,0.7195778,3634.2,3634.1,1.3154]
[1733268363097,0.46259316,3634.2,3634.1,1.3154]
[1733268363301,0.71949482,3634.2,3634.1,1.3154]
[1733268363683,0.71949482,3634.2,3634.1,0.2]
[1733268363851,2.75178,3634.0,3633.9,0.1]
[1733268364053,1.10772879,3634.0,3633.9,0.3]
[1733268364397,0.71949482,3634.0,3633.9,0.3]
[1733268364681,0.71949482,3634.0,3633.9,0.2]
[1733268364850,0.71949482,3634.0,3633.9,0.23922174]
[1733268365053,1.13057307,3634.0,3633.9,0.23922174]
[1733268367358,1.13057307,3634.0,3633.9,0.03922174]
[1733268367557,3.88235307,3634.0,3633.9,0.23922174]
[1733268368084,1.54160928,3634.0,3633.9,0.23922174]
[1733268368285,1.13057307,3634.0,3633.9,0.03922174]
[1733268369215,0.71925647,3634.0,3633.9,0.23922174]
[1733268369503,0.71923882,3634.0,3633.9,0.23922174]
[1733268370754,3.47101882,3634.0,3633.9,0.23922174]
[1733268370955,3.21415916,3634.0,3633.9,0.23922174]
[1733268371854,3.37116868,3634.0,3633.9,0.23922174]
[1733268371996,3.37112881,3634.0,3633.9,0.03922174]
[1733268372346,2.75178,3634.0,3633.9,0.03922174]
[1733268372635,3.47090012,3634.0,3633.9,0.03922174]
[1733268372840,4.49580012,3634.0,3633.9,0.03922174]
[1733268373600,4.49580012,3634.0,3633.9,0.00566361]
[1733268374909,3.47090012,3634.0,3633.9,0.00566361]
[1733268375231,4.2782278,3634.0,3633.9,0.00566361]
[1733268375817,4.2782577,3634.0,3633.9,0.00566361]
[1733268376250,5.2540577,3634.0,3633.9,0.00566361]
[1733268376623,5.66497108,3634.0,3633.9,0.00566361]
[1733268376819,2.3483344,3634.0,3632.9,0.9614]
[1733268377036,2.75216,3633.5,3633.4,0.2]
[1733268377209,3.21486274,3633.5,3633.4,0.2]
[1733268377554,3.00921708,3633.5,3633.4,0.2]
[1733268377721,3.21486267,3633.5,3633.4,0.2]
[1733268378070,0.41091338,3633.8,3633.4,0.2]
[1733268378215,2.7521,3633.6,3633.4,0.2]
[1733268378415,0.25707063,3633.5,3633.4,0.2]
[1733268379137,0.4628689,3633.7,3633.4,0.2]
[1733268379352,0.72010333,3633.6,3633.4,0.2]
[1733268379558,2.75224,3633.4,3633.3,0.1]
[1733268379879,3.00956469,3633.4,3633.2,0.1]
[1733268380036,2.75231,3633.4,3633.2,0.1]
[1733268380356,2.75247,3633.1,3633.0,0.1]
[1733268380717,0.41184258,3633.5,3633.1,0.2]
[1733268380919,0.41184258,3633.5,3633.0,0.1]
[1733268380920,2.75216,3633.5,3633.4,0.2]
[1733268381246,3.47284172,3633.5,3633.2,0.2]
[1733268381556,0.72068172,3633.4,3633.2,0.2]
[1733268381739,0.72068172,3633.3,3633.2,0.2]
[1733268382126,2.75247,3633.1,3633.0,0.1]
[1733268382332,2.75247,3633.1,3632.8,0.1]
[1733268382333,0.72068172,3633.1,3632.8,0.1]
[1733268382533,2.75262,3632.9,3632.8,0.1]
[1733268382768,4.1374573,3632.9,3632.8,0.1]
[1733268383332,4.1374573,3632.9,3632.4,1.2386]
[1733268383333,2.7529,3632.6,3632.4,0.3]
[1733268383565,1.3848373,3632.9,3632.2,0.2]
[1733268383566,0.9597,3632.8,3632.2,0.2]
[1733268383873,0.9597,3632.8,3632.0,1.135]
[1733268383874,2.75289,3632.6,3632.0,0.1]
[1733268384173,2.75317,3632.2,3632.0,0.1]
[1733268384331,0.25753836,3632.1,3632.0,0.1]
[1733268384834,3.01075836,3632.1,3632.0,0.1]
[1733268385024,0.25753836,3632.1,3632.0,0.1]
[1733268385227,2.75308,3632.3,3632.0,0.1]
[1733268385576,0.31647517,3632.2,3632.0,0.1]
[1733268385729,2.75303,3632.4,3632.0,0.1]
[1733268386077,0.87476246,3632.3,3632.0,0.1]
[1733268386238,0.25728305,3632.2,3632.0,0.1]
[1733268386446,0.25728305,3632.1,3632.0,0.1]
[1733268386787,0.41165294,3632.4,3632.0,0.3]
[1733268386970,2.75315,3632.2,3632.0,0.3]
[1733268387141,0.25714148,3632.1,3632.0,0.3]
[1733268387482,2.75309,3632.3,3632.0,0.3]
[1733268387627,0.25703848,3632.2,3632.0,0.3]
[1733268387826,0.4096293,3632.4,3632.0,0.3]
[1733268388024,0.25704574,3632.3,3632.0,0.3]
[1733268388250,0.4096293,3632.4,3632.1,1.0334]
[1733268388449,0.25694352,3632.3,3632.1,1.0334]
[1733268388668,0.25694352,3632.2,3632.1,1.0334]
[1733268388870,0.4096293,3632.4,3632.1,1.0334]
[1733268389181,0.57318344,3632.3,3632.0,0.3]
[1733268389325,0.25693251,3632.3,3632.0,0.3]
[1733268389526,0.52003724,3632.7,3632.0,0.3]
[1733268389763,2.75295,3632.5,3632.0,0.3]
[1733268389963,0.25685959,3632.4,3632.0,0.3]
[1733268390142,2.75295,3632.5,3632.0,0.3]
[1733268390143,0.25685959,3632.3,3632.0,0.3]
[1733268390478,3.27281724,3632.7,3632.0,0.3]
[1733268390691,1.5006454,3632.6,3632.0,0.3]
[1733268390905,0.25681391,3632.5,3632.0,0.3]
[1733268391192,0.25681391,3632.4,3632.0,0.3]
[1733268391364,3.53446645,3632.6,3632.0,0.3]
[1733268391564,0.799305,3632.5,3632.0,0.3]
[1733268391766,0.25678745,3632.4,3632.0,0.3]
[1733268391993,0.25678745,3632.3,3632.0,0.3]
[1733268392147,0.54251755,3632.5,3632.0,0.3]
[1733268392343,0.25678676,3632.4,3632.0,0.3]
[1733268392543,0.78156645,3632.6,3632.0,0.3]
[1733268392544,3.00987676,3632.3,3632.0,0.3]
[1733268392743,2.75295,3632.5,3632.0,0.3]
[1733268392948,0.25678555,3632.4,3632.0,0.3]
[1733268393179,2.75295,3632.5,3632.0,0.3]
[1733268393398,0.65135501,3632.4,3632.0,0.3]
[1733268393556,0.25680618,3632.3,3632.0,0.3]
[1733268393756,0.39454883,3632.4,3632.0,0.3]
[1733268394068,0.25680862,3632.3,3632.0,0.3]
[1733268394318,0.39454883,3632.4,3632.0,0.3]
[1733268394478,0.64970519,3632.3,3632.0,0.3]
[1733268394685,0.78156645,3632.6,3632.0,0.3]
[1733268395011,0.25679727,3632.5,3632.2,0.2]
[1733268395351,0.25679727,3632.4,3632.2,0.2]
[1733268395550,0.25679727,3632.3,3632.2,0.2]
[1733268396697,1.36457185,3633.1,3632.4,1.182]
[1733268396849,0.25676993,3633.0,3632.3,0.3]
[1733268397049,0.9536,3633.1,3632.3,0.3]
[1733268397050,0.65304992,3632.9,3632.6,0.2]
[1733268397277,0.25676993,3632.8,3632.6,0.2]
[1733268397476,4.16830599,3633.1,3632.9,0.2]
[1733268397477,0.41097185,3633.1,3632.9,0.2]
[1733268397676,0.25676552,3633.0,3632.8,1.0116]
[1733268397880,2.7524,3633.2,3632.8,1.0116]
[1733268397881,0.25676552,3633.1,3632.9,0.2]
[1733268398090,0.25676552,3633.0,3632.9,0.2]
[1733268399571,0.25676552,3633.0,3632.8,1.0116]
[1733268399572,0.20547869,3633.2,3633.1,0.3]
[1733268399905,0.25683582,3633.2,3633.1,0.3]
[1733268400191,2.75219,3633.5,3633.1,0.3]
[1733268400399,0.25686857,3633.4,3633.1,0.3]
[1733268400695,0.25686857,3633.3,3633.1,0.3]
[1733268400891,0.25686857,3633.2,3633.1,0.3]
[1733268402709,0.71924122,3633.2,3633.1,0.3]
[1733268402880,0.71953585,3633.2,3633.1,0.3]
[1733268403084,0.25703414,3633.2,3633.1,0.3]
[1733268403269,0.71953585,3633.2,3633.1,0.3]
[1733268403679,1.13079047,3633.2,3633.1,0.3]
[1733268403888,0.71953585,3633.2,3633.1,0.3]
[1733268404697,1.13079047,3633.2,3633.1,0.3]
[1733268404887,0.71953585,3633.2,3633.1,0.3]
[1733268405614,0.25703414,3633.2,3633.1,0.1]
[1733268405775,0.25703414,3633.2,3632.9,0.3]
[1733268405974,0.25703414,3633.1,3632.9,0.3]
[1733268406307,0.25703414,3633.0,3632.9,0.3]
[1733268406681,0.25703414,3633.0,3632.9,0.2]
[1733268406863,0.25703414,3633.0,3632.9,0.3]
[1733268407590,0.72008105,3633.0,3632.9,0.3]
[1733268407979,0.25703414,3633.0,3632.9,0.3]
[1733268409207,0.25703414,3633.0,3632.9,1.3133]
[1733268409506,0.41165821,3633.5,3633.2,0.2]
[1733268409690,0.87479779,3633.4,3633.2,0.2]
[1733268409863,0.72043903,3633.3,3633.2,0.2]
[1733268410065,0.25729945,3633.3,3633.2,0.2]
[1733268410291,0.46318797,3633.3,3633.2,0.2]
[1733268410493,0.25732665,3633.3,3633.2,0.2]
[1733268411472,0.25732665,3633.3,3633.1,0.1]
[1733268411665,0.25732665,3633.2,3633.1,0.1]
[1733268412008,0.25732665,3633.2,3631.4,0.52155549]
[1733268412009,3.7768,3633.1,3632.3,0.3]
[1733268412315,2.75281,3632.7,3632.3,0.3]
[1733268412905,2.75279,3632.7,3632.3,0.3]
[1733268413508,2.75262,3632.9,3632.3,0.3]
[1733268413708,2.75284,3632.7,3632.3,0.3]
[1733268413907,2.75293,3632.5,3632.3,0.1]
[1733268414116,2.753,3632.4,3632.3,0.1]
[1733268415648,2.75307,3632.3,3632.0,0.1]
[1733268417523,3.47397667,3632.3,3632.0,0.1]
[1733268418613,2.75321,3632.2,3631.2,2.75388]
[1733268418986,1.69203819,3632.5,3631.0,2.75405]
[1733268418987,2.43356144,3632.5,3631.0,2.75405]
[1733268419188,2.75336,3632.0,3631.0,2.75405]
[1733268419625,2.75347,3631.8,3630.8,5.4182356]
[1733268420124,1.0505,3631.9,3631.0,2.75405]
[1733268420286,1.0505,3631.9,3630.9,0.02753705]
[1733268420287,2.75335,3632.0,3630.9,2.75406]
[1733268420487,0.380385,3631.9,3630.9,2.75406]
[1733268421097,2.75352,3631.8,3630.8,2.6640456]
[1733268421289,2.75355,3631.7,3630.7,2.75427]
[1733268421695,2.75355,3631.7,3630.8,1.0135]
[1733268421920,0.3133935,3631.7,3630.8,3.7677]
[1733268423689,0.3133935,3631.7,3631.5,0.01190785]
[1733268424031,0.3133935,3631.7,3631.5,0.00719404]
[1733268425538,3.731,3631.6,3631.5,0.00719404]
[1733268426201,4.45123243,3631.6,3631.5,0.00719404]
[1733268426837,7.45123243,3631.6,3631.5,0.00719404]
[1733268427002,8.60337708,3631.6,3631.5,0.00719404]
[1733268427205,10.03324151,3631.6,3631.5,0.00719404]
[1733268427411,10.47406264,3631.6,3631.5,0.00719404]
[1733268429539,10.47197517,3631.6,3631.5,0.00719404]
[1733268430258,10.47197517,3631.6,3631.5,4.04e-06]
[1733268430826,15.89969042,3631.6,3631.5,4.04e-06]
[1733268431061,15.89974334,3631.6,3631.5,4.04e-06]
[1733268431433,15.89964955,3631.6,3631.5,4.04e-06]
[1733268431634,14.47197517,3631.6,3631.5,4.04e-06]
[1733268432362,10.06053545,3631.6,3631.5,4.04e-06]
[1733268432658,9.1156687,3631.6,3631.5,4.04e-06]
[1733268432961,9.32087397,3631.6,3631.5,4.04e-06]
[1733268433860,9.32087397,3631.6,3631.5,0.02432886]
[1733268434665,9.32087397,3631.6,3631.5,4.04e-06]
[1733268435422,2.7533,3632.1,3631.5,0.99440404]
[1733268435871,0.65358541,3632.4,3631.5,0.99440404]
[1733268435872,2.7533,3632.0,3631.5,0.99440404]
[1733268437939,0.24335614,3632.4,3631.5,0.99440404]
[1733268438151,0.96151705,3632.4,3631.5,0.99440404]
[1733268438473,2.75325,3632.1,3631.5,0.99440404]
[1733268439095,2.7536,3631.6,3631.5,4.04e-06]
[1733268439443,2.98593549,3631.6,3631.5,4.04e-06]
[1733268439631,2.75415,3630.9,3630.2,1.0265]
[1733268440073,2.75382,3631.4,3630.2,1.0265]
[1733268440230,2.75413,3631.0,3630.2,1.0265]
[1733268440645,2.75418,3630.9,3630.2,1.0265]
[1733268441390,2.7543,3630.7,3630.2,1.0265]
[1733268441609,2.75437,3630.6,3630.2,1.0265]
[1733268441895,2.75444,3630.5,3630.1,0.010744]
[1733268442453,2.75448,3630.5,3630.1,0.010744]
[1733268442694,0.380148,3630.5,3630.1,0.010744]
[1733268443001,2.7546,3630.3,3630.1,0.010744]
[1733268443492,2.75466,3630.2,3630.1,0.010744]
[1733268445897,9.6491335,3631.6,3630.1,1.017044]
[1733268445898,2.7544,3630.6,3630.1,1.017044]
[1733268446058,2.75421,3630.8,3630.1,1.017044]
[1733268446256,0.25703123,3630.7,3630.1,1.017044]
[1733268446454,1.94651335,3631.4,3630.1,1.017044]
[1733268446455,2.75444,3630.5,3630.1,1.017044]
[1733268446890,2.75432,3630.7,3630.1,1.017044]
[1733268447139,0.275432,3630.7,3630.1,1.017044]
[1733268447281,0.71988258,3630.9,3630.1,3.771784]
[1733268447485,0.25710092,3630.8,3630.1,3.771784]
[1733268447725,0.20568074,3630.9,3630.1,1.017044]
[1733268447870,0.46277495,3630.8,3630.1,1.017044]
[1733268448074,0.25709421,3630.7,3630.1,3.771774]
[1733268448275,0.20568074,3630.7,3630.1,3.771774]
[1733268448531,0.46278166,3630.8,3630.1,3.271774]
[1733268448708,0.46285443,3630.7,3630.1,3.271774]
[1733268449026,0.25717417,3630.6,3630.1,3.271774]
[1733268449180,0.71995406,3630.8,3630.1,3.271774]
[1733268449529,0.34739341,3630.8,3630.1,3.271774]
[1733268449691,2.75446,3630.5,3629.3,2.75529]
[1733268449902,0.72012753,3630.4,3628.7,2.6640456]
[1733268450112,2.75475,3630.1,3629.0,2.75551]
[1733268450275,1.15203003,3630.5,3628.7,2.6640456]
[1733268450480,2.7548,3630.1,3628.9,2.75562]
[1733268450746,3.76289,3630.3,3628.9,2.75562]
[1733268450747,2.75488,3630.0,3628.9,2.75562]
[1733268451048,3.01216316,3629.9,3628.9,2.75562]
[1733268451249,3.09729522,3629.9,3628.9,2.75562]
[1733268451546,0.34237522,3629.9,3629.0,0.9844]
[1733268451717,2.75484,3630.0,3629.0,0.9844]
[1733268451898,0.4629974,3629.9,3629.0,3.73994]
[1733268452102,0.20577697,3629.9,3629.0,3.73994]
[1733268452653,0.20577697,3629.9,3629.1,2.75549]
[1733268452821,0.25718633,3629.8,3629.0,0.9844]
[1733268453190,0.4629087,3630.6,3629.8,0.9786]
[1733268453445,0.20575552,3630.5,3630.2,2.75462]
[1733268453655,1.08015563,3631.3,3630.3,2.75459]
[1733268453943,0.20571835,3631.2,3630.4,1.056]
[1733268454161,0.25712986,3631.3,3630.5,2.75443]
[1733268454306,0.25712986,3631.1,3630.6,2.75436]
[1733268454522,0.25717991,3631.4,3630.6,2.75436]
[1733268454707,0.46291421,3631.3,3630.6,2.75436]
[1733268455063,0.25717195,3631.2,3630.5,0.02754246]
[1733268455356,0.3885192,3631.3,3630.5,2.75444]
[1733268455357,0.25717991,3631.3,3630.5,2.75444]
[1733268455524,0.4630103,3631.2,3630.4,1.056]
[1733268455722,0.25722798,3631.1,3630.4,3.81051]
[1733268455950,0.41147513,3631.4,3630.4,3.81051]
[1733268456252,0.72024815,3631.3,3630.6,2.75435]
[1733268456419,0.25723164,3631.2,3630.6,2.75435]
[1733268456624,0.46301651,3631.1,3629.6,0.9637]
[1733268456952,2.75423,3630.8,3629.8,2.75494]
[1733268457152,2.75423,3630.8,3629.6,0.9637]
[1733268457321,0.46307383,3630.7,3629.7,2.75502]
[1733268457532,0.2572519,3630.6,3629.6,0.9637]
[1733268457720,2.75429,3630.7,3629.6,3.71875]
[1733268457922,0.46313417,3630.6,3629.7,2.75501]
[1733268458124,2.75429,3630.7,3629.7,2.75501]
[1733268458325,2.75414,3630.9,3629.8,2.75489]
[1733268458641,0.72042853,3630.8,3629.8,2.75489]
[1733268458837,0.86858155,3630.7,3629.8,2.75489]
[1733268459046,0.25729563,3630.6,3629.9,2.75483]
[1733268459337,0.2058352,3630.7,3629.7,2.75502]
[1733268459572,0.46313798,3630.6,3629.6,0.9637]
[1733268459747,0.25729888,3630.5,3629.6,0.9637]
[1733268459955,0.25730189,3630.7,3629.7,2.75504]
[1733268460152,0.76430164,3630.6,3629.7,2.75504]
[1733268460328,0.30115419,3630.6,3629.7,2.75504]
[1733268460761,2.75459,3630.3,3629.6,0.9637]
[1733268461081,2.75479,3630.1,3629.0,2.75556]
[1733268461248,2.7548,3630.1,3629.0,2.75556]
[1733268461656,2.7548,3630.1,3628.8,0.971]
[1733268461657,2.7548,3630.1,3629.1,2.75549]
[1733268461980,0.46319747,3630.0,3628.9,2.75562]
[1733268462206,1.49430562,3629.9,3628.9,2.75564]
[1733268462368,0.42491456,3629.8,3628.9,2.75564]
[1733268462801,2.75497,3629.8,3628.8,0.971]
[1733268463394,2.75497,3629.8,3628.8,3.72668]
[1733268463706,1.0311,3629.9,3628.9,2.75565]
[1733268463913,2.75503,3629.8,3628.8,0.971]
[1733268464127,2.75506,3629.7,3628.8,0.971]
[1733268464405,3.133676,3629.7,3628.8,0.971]
[1733268464922,0.378616,3629.7,3628.8,0.971]
[1733268465061,2.75527,3629.5,3628.3,2.75604]
[1733268465260,2.7553,3629.4,3628.3,2.75604]
[1733268465462,2.75542,3629.3,3628.1,2.75623]
[1733268465764,3.030962,3629.3,3628.1,3.39427756]
[1733268465995,0.275542,3629.3,3628.1,3.39427756]
[1733268466263,0.275542,3629.3,3628.0,0.9602]
[1733268466264,2.75579,3628.8,3628.0,0.9602]
[1733268466481,2.75582,3628.7,3628.0,0.9602]
[1733268466681,2.75588,3628.6,3627.5,2.75669]
[1733268466894,3.73138,3628.6,3627.6,0.9995]
[1733268467115,2.75596,3628.5,3627.6,0.9995]
[1733268467278,2.75618,3628.2,3627.3,0.9995]
[1733268467611,3.031798,3628.2,3627.3,0.9995]
[1733268468320,0.275618,3628.2,3627.3,0.9995]
[1733268468665,0.275618,3628.2,3627.3,3.75635]
[1733268468988,0.275618,3628.2,3627.3,0.9995]
[1733268469663,0.9755,3628.6,3627.3,0.9995]
[1733268469859,0.9755,3628.6,3627.5,2.75671]
[1733268470201,3.9755,3628.6,3627.4,0.02756512]
[1733268470359,0.9755,3628.6,3627.4,0.02756512]
[1733268470561,0.9755,3628.6,3627.6,2.75662]
[1733268470764,2.6640456,3628.0,3627.4,0.02756512]
[1733268471001,3.9596,3627.9,3626.6,2.7574]
[1733268471166,2.75651,3627.8,3626.6,2.7574]
[1733268471362,3.9596,3627.9,3626.5,0.9584]
[1733268471363,3.69457556,3627.7,3626.5,0.9584]
[1733268471983,0.93801556,3627.7,3626.6,2.75739]
[1733268472314,3.69459556,3627.7,3626.5,0.9584]
[1733268472977,3.0,3627.6,3626.5,0.9584]
[1733268473167,0.93801556,3627.7,3626.5,0.98597331]
[1733268473367,0.9596,3627.9,3626.6,0.02757138]
[1733268473595,0.9596,3627.9,3626.8,2.75721]
[1733268474106,0.9596,3627.9,3626.9,2.75715]
[1733268474690,0.9596,3627.9,3627.0,2.75706]
[1733268474876,4.412743,3628.5,3627.1,3.785]
[1733268475080,3.0,3628.4,3627.1,3.785]
[1733268475276,2.75606,3628.4,3627.1,3.785]
[1733268475483,2.75613,3628.3,3627.1,3.785]
[1733268476416,1.656723,3628.5,3627.1,1.028]
[1733268476565,2.75621,3628.2,3627.1,1.028]
[1733268476770,2.75628,3628.1,3627.1,1.028]
[1733268476970,3.1297179,3628.4,3627.1,1.028]
[1733268477282,2.75656,3627.8,3626.6,1.0249]
[1733268477478,3.032226,3627.7,3626.6,1.0249]
[1733268477790,2.7569,3627.3,3626.6,1.0249]
[1733268478093,1.0027,3627.6,3626.6,1.0249]
[1733268478292,2.75695,3627.2,3626.6,1.0249]
[1733268479071,2.75681,3627.4,3626.6,1.0249]
[1733268479272,0.375951,3627.3,3626.6,1.0249]
[1733268479900,1.0027,3627.6,3626.6,1.0249]
[1733268480222,2.75669,3627.6,3626.6,1.0249]
[1733268480914,2.75651,3627.8,3626.6,1.0249]
[1733268481280,2.75694,3627.3,3626.6,1.0249]
[1733268481623,0.275694,3627.2,3626.6,1.0249]
[1733268482178,3.032664,3627.2,3626.6,1.0249]
[1733268482929,0.275694,3627.2,3626.6,1.0249]
[1733268483677,2.75664,3627.6,3626.6,1.0249]
[1733268483905,2.75672,3627.5,3626.0,0.9609]
[1733268484110,2.75682,3627.4,3626.2,2.75764]
[1733268484277,0.275682,3627.3,3626.2,2.75764]
[1733268484474,0.275682,3627.3,3626.0,0.9609]
[1733268484475,0.275682,3627.3,3626.3,2.75762]